fUST/lending_fUST_20250411
["ID","MTS","AMOUNT","RATE_DAILY","PERIOD"]
[357686688,1744332669465,-151.0,0.00017485,2]
[357686689,1744332669475,-151.0,0.00017485,2]
[357686690,1744332669485,-151.0,0.00017485,2]
[357686691,1744332669495,-151.0,0.00017485,2]
[357686692,1744332669505,-151.0,0.00017485,2]
[357686693,1744332669514,-151.0,0.00017485,2]
[357686694,1744332669524,-151.0,0.00017485,2]
[357686695,1744332669533,-151.0,0.00017485,2]
[357686696,1744332669543,-200.08930895,0.00017485,2]
[357686697,1744332669553,-591.0,0.000175,2]
[357686698,1744332669563,-300.0,0.000175,2]
[357686699,1744332669573,-9142.00076999,0.000175,4]
[357686700,1744332669583,-3699.75,0.00017534,2]
[357686701,1744332669593,-500.0,0.00017534,2]
[357686702,1744332669603,-865.73,0.00017534,2]
[357686703,1744332669613,-1251.82,0.00017534,2]
[357686704,1744332669622,-500.0,0.00017534,2]
[357686705,1744332669632,-500.0,0.00017534,2]
[357686706,1744332669642,-500.0,0.00017534,2]
[357686707,1744332669652,-599.27,0.00017534,2]
[357686708,1744332669662,-494.23274995,0.00017534,2]
[357686709,1744332669671,-570.69,0.00017534,2]
[357686710,1744332669681,-500.0,0.00017534,2]
[357686711,1744332669691,-822.09,0.00017534,2]
[357686712,1744332669701,-547.61320053,0.00017534,2]
[357686713,1744332669711,-500.0,0.00017534,2]
[357686714,1744332669721,-500.0,0.00017534,2]
[357686715,1744332669732,-500.0,0.00017534,2]
[357686716,1744332669743,-500.0,0.00017534,2]
[357686717,1744332669752,-780.46,0.00017534,2]
[357686718,1744332669762,-911.25,0.00017534,2]
[357686719,1744332669772,-500.0,0.00017534,2]
[357686720,1744332669782,-500.0,0.00017534,2]
[357686721,1744332669791,-500.0,0.00017534,2]
[357686722,1744332669801,-500.0,0.00017534,2]
[357686723,1744332669811,-500.0,0.00017534,2]
[357686724,1744332669821,-500.0,0.00017534,2]
[357686725,1744332669831,-500.0,0.00017534,2]
[357686726,1744332669840,-500.0,0.00017534,2]
[357686727,1744332669850,-300.0,0.00017534,2]
[357686728,1744332669860,-500.0,0.00017534,2]
[357686729,1744332669869,-500.0,0.00017534,2]
[357686730,1744332669879,-500.0,0.00017534,2]
[357686731,1744332669888,-500.0,0.00017534,2]
[357686732,1744332669898,-500.0,0.00017534,2]
[357686733,1744332669908,-500.0,0.00017534,2]
[357686734,1744332669917,-500.0,0.00017534,2]
[357686735,1744332669927,-500.0,0.00017534,2]
[357686736,1744332669937,-500.0,0.00017534,2]
[357686737,1744332669946,-500.0,0.00017534,2]
[357686738,1744332669956,-1232.99,0.00017534,2]
[357686739,1744332669965,-588.16,0.00017534,2]
[357686740,1744332669974,-500.0,0.00017534,2]
[357686741,1744332669984,-500.0,0.00017534,2]
[357686742,1744332669994,-500.0,0.00017534,2]
[357686743,1744332670003,-500.0,0.00017534,2]
[357686744,1744332670015,-500.0,0.00017534,2]
[357686745,1744332670024,-500.0,0.00017534,2]
[357686746,1744332670034,-507.17,0.00017534,2]
[357686747,1744332670043,-500.0,0.00017534,2]
[357686748,1744332670053,-1079.66,0.00017534,2]
[357686749,1744332670063,-500.0,0.00017534,2]
[357686750,1744332670072,-1430.67,0.00017534,2]
[357686751,1744332670083,-500.0,0.00017534,2]
[357686752,1744332670093,-1119.95,0.00017534,2]
[357686753,1744332670103,-625.16,0.00017534,2]
[357686754,1744332670112,-500.0,0.00017534,2]
[357686755,1744332670122,-500.0,0.00017534,2]
[357686756,1744332670131,-686.77,0.00017534,2]
[357686757,1744332670140,-500.0,0.00017534,2]
[357686758,1744332670150,-2680.42,0.00017534,2]
[357686759,1744332670159,-500.0,0.00017534,2]
[357686760,1744332670168,-500.0,0.00017534,2]
[357686761,1744332670178,-500.0,0.00017534,2]
[357686762,1744332670187,-596.86,0.00017534,2]
[357686763,1744332670197,-500.0,0.00017534,2]
[357686764,1744332670207,-2411.42,0.00017534,2]
[357686765,1744332670216,-500.0,0.00017534,2]
[357686766,1744332670225,-687.7,0.00017534,2]
[357686767,1744332670236,-500.0,0.00017534,2]
[357686768,1744332670245,-902.62,0.00017534,2]
[357686769,1744332670254,-2689.13,0.00017534,2]
[357686770,1744332670264,-500.0,0.00017534,2]
[357686771,1744332670274,-785.7,0.00017534,2]
[357686772,1744332670283,-483.72109634,0.00017534,2]
[357686773,1744332670293,-500.0,0.00017534,2]
[357686774,1744332670302,-500.0,0.00017534,2]
[357686775,1744332670311,-500.0,0.00017534,2]
[357686776,1744332670320,-5675.99,0.00017534,2]
[357686777,1744332670330,-500.0,0.00017534,2]
[357686778,1744332670339,-500.0,0.00017534,2]
[357686779,1744332670348,-870.2,0.00017534,2]
[357686780,1744332670357,-500.0,0.00017534,2]
[357686781,1744332670367,-500.0,0.00017534,2]
[357686782,1744332670376,-500.0,0.00017534,2]
[357686783,1744332670386,-500.0,0.00017534,2]
[357686784,1744332670396,-597.88,0.00017534,2]
[357686785,1744332670405,-500.0,0.00017534,2]
[357686786,1744332670414,-500.0,0.00017534,2]
[357686787,1744332670423,-626.25,0.00017534,2]
[357686788,1744332670433,-500.0,0.00017534,2]
[357686789,1744332670442,-500.0,0.00017534,2]
[357686790,1744332670452,-892.18,0.00017534,2]
[357686791,1744332670461,-500.0,0.00017534,2]
[357686792,1744332670471,-500.0,0.00017534,2]
[357686793,1744332670481,-682.01,0.00017534,2]
[357686794,1744332670490,-500.0,0.00017534,2]
[357686795,1744332670499,-500.0,0.00017534,2]
[357686796,1744332670509,-500.0,0.00017534,2]
[357686797,1744332670518,-2060.38,0.00017534,2]
[357686798,1744332670528,-605.05,0.00017534,2]
[357686799,1744332670538,-500.0,0.00017534,2]
[357686800,1744332670547,-500.0,0.00017534,2]
[357686801,1744332670557,-500.0,0.00017534,2]
[357686802,1744332670566,-2354.26,0.00017534,2]
[357686803,1744332670576,-500.0,0.00017534,2]
[357686804,1744332670586,-500.0,0.00017534,2]
[357686805,1744332670595,-622.34,0.00017534,2]
[357686806,1744332670605,-1017.63,0.00017534,2]
[357686807,1744332670614,-500.0,0.00017534,2]
[357686808,1744332670624,-500.0,0.00017534,2]
[357686809,1744332670637,-938.97,0.00017534,2]
[357686810,1744332670647,-500.0,0.00017534,2]
[357686811,1744332670660,-610.26159568,0.00017534,2]
[357686812,1744332670669,-500.0,0.00017534,2]
[357686813,1744332670679,-500.0,0.00017534,2]
[357686814,1744332670688,-658.07,0.00017534,2]
[357686815,1744332670698,-500.0,0.00017534,2]
[357686816,1744332670708,-500.0,0.00017534,2]
[357686817,1744332670717,-500.0,0.00017534,2]
[357686818,1744332670731,-1373.8,0.00017534,2]
[357686819,1744332670744,-753.79,0.00017534,2]
[357686820,1744332670754,-1265.29,0.00017534,2]
[357686821,1744332670765,-500.0,0.00017534,2]
[357686822,1744332670775,-820.1,0.00017534,2]
[357686823,1744332670785,-500.0,0.00017534,2]
[357686824,1744332670794,-584.98,0.00017534,2]
[357686825,1744332670931,-500.0,0.00017534,2]
[357686826,1744332670943,-1800.19,0.00017534,2]
[357686827,1744332670953,-500.0,0.00017534,2]
[357686828,1744332670963,-500.0,0.00017534,2]
[357686829,1744332670973,-508.82,0.00017534,2]
[357686830,1744332670983,-500.0,0.00017534,2]
[357686831,1744332670992,-222.33798523,0.00017534,2]
[357686832,1744332671002,-500.0,0.00017534,2]
[357686833,1744332671012,-500.0,0.00017534,2]
[357686834,1744332671022,-965.93,0.00017534,2]
[357686835,1744332671032,-203.84881082,0.00017534,2]
[357686836,1744332671042,-622.37,0.00017534,2]
[357686837,1744332671051,-500.0,0.00017534,2]
[357686838,1744332671061,-964.69,0.00017534,2]
[357686839,1744332671070,-1069.32,0.00017534,2]
[357686840,1744332671080,-1504.79,0.00017534,2]
[357686841,1744332671089,-626.21,0.00017534,2]
[357686842,1744332671099,-500.0,0.00017534,2]
[357686843,1744332671108,-500.0,0.00017534,2]
[357686844,1744332671118,-522.1,0.00017534,2]
[357686845,1744332671127,-500.0,0.00017534,2]
[357686846,1744332671137,-500.0,0.00017534,2]
[357686847,1744332671146,-984.02,0.00017534,2]
[357686848,1744332671156,-500.0,0.00017534,2]
[357686849,1744332671165,-500.0,0.00017534,2]
[357686850,1744332671175,-500.0,0.00017534,2]
[357686851,1744332671184,-519.3,0.00017534,2]
[357686852,1744332671193,-1328.83,0.00017534,2]
[357686853,1744332671203,-920.39,0.00017534,2]
[357686854,1744332671213,-1101.36,0.00017534,2]
[357686855,1744332671222,-500.0,0.00017534,2]
[357686856,1744332671232,-818.53,0.00017534,2]
[357686857,1744332671241,-500.0,0.00017534,2]
[357686858,1744332671250,-856.67,0.00017534,2]
[357686859,1744332671261,-743.65,0.00017534,2]
[357686860,1744332671271,-1156.1,0.00017534,2]
[357686861,1744332671282,-678.36,0.00017534,2]
[357686862,1744332671292,-1705.48,0.00017534,2]
[357686863,1744332671302,-716.68,0.00017534,2]
[357686864,1744332671311,-500.0,0.00017534,2]
[357686865,1744332671320,-500.0,0.00017534,2]
[357686866,1744332671330,-500.0,0.00017534,2]
[357686867,1744332671339,-445.64947989,0.00017534,2]
[357686868,1744332671349,-1296.89,0.00017534,2]
[357686869,1744332671359,-500.0,0.00017534,2]
[357686870,1744332671368,-790.9,0.00017534,2]
[357686871,1744332671378,-704.94,0.00017534,2]
[357686872,1744332671387,-567.7,0.00017534,2]
[357686873,1744332671397,-500.0,0.00017534,2]
[357686874,1744332671406,-546.42869935,0.00017534,2]
[357686875,1744332671416,-558.42,0.00017534,2]
[357686876,1744332671425,-500.0,0.00017534,2]
[357686877,1744332671435,-1188.07,0.00017534,2]
[357686878,1744332671445,-500.0,0.00017534,2]
[357686879,1744332671454,-714.62,0.00017534,2]
[357686880,1744332671464,-3771.47,0.00017534,2]
[357686881,1744332671473,-570.24,0.00017534,2]
[357686882,1744332671483,-500.0,0.00017534,2]
[357686883,1744332671493,-1402.01,0.00017534,2]
[357686884,1744332671502,-500.0,0.00017534,2]
[357686885,1744332671512,-1107.44,0.00017534,2]
[357686886,1744332671523,-726.32,0.00017534,2]
[357686887,1744332671532,-500.0,0.00017534,2]
[357686888,1744332671542,-1438.7,0.00017534,2]
[357686889,1744332671552,-500.0,0.00017534,2]
[357686890,1744332671561,-934.2,0.00017534,2]
[357686891,1744332671570,-870.5,0.00017534,2]
[357686892,1744332671579,-1864.53,0.00017534,2]
[357686893,1744332671589,-537.53,0.00017534,2]
[357686894,1744332671598,-500.0,0.00017534,2]
[357686895,1744332671607,-998.15,0.00017534,2]
[357686896,1744332671616,-1383.56,0.00017534,2]
[357686897,1744332671626,-3529.69,0.00017534,2]
[357686898,1744332671635,-500.0,0.00017534,2]
[357686899,1744332671644,-500.0,0.00017534,2]
[357686900,1744332671657,-500.0,0.00017534,2]
[357686901,1744332671667,-500.0,0.00017534,2]
[357686902,1744332671676,-3044.77,0.00017534,2]
[357686903,1744332671686,-2146.75,0.00017534,2]
[357686904,1744332671696,-1512.13,0.00017534,2]
[357686905,1744332671706,-14936.72,0.00017534,2]
[357686906,1744332671715,-500.0,0.00017534,2]
[357686907,1744332671725,-1335.19,0.00017534,2]
[357686908,1744332671736,-1204.17,0.00017534,2]
[357686909,1744332671747,-436.91,0.00017534,2]
[357686910,1744332671758,-500.0,0.00017534,2]
[357686911,1744332671768,-2211.01,0.00017534,2]
[357686912,1744332671777,-1290.13,0.00017534,2]
[357686913,1744332671787,-500.0,0.00017534,2]
[357686914,1744332671798,-782.17,0.00017534,2]
[357686915,1744332671812,-1521.17,0.00017534,2]
[357686916,1744332671827,-500.0,0.00017534,2]
[357686917,1744332671837,-500.0,0.00017534,2]
[357686918,1744332671847,-500.0,0.00017534,2]
[357686919,1744332671856,-500.0,0.00017534,2]
[357686920,1744332671866,-3640.91,0.00017534,2]
[357686921,1744332671876,-500.0,0.00017534,2]
[357686922,1744332671885,-500.0,0.00017534,2]
[357686923,1744332671895,-500.0,0.00017534,2]
[357686924,1744332671905,-708.03,0.00017534,2]
[357686925,1744332671914,-500.0,0.00017534,2]
[357686926,1744332671923,-500.0,0.00017534,2]
[357686927,1744332671933,-322.64672471,0.00017534,2]
[357686928,1744332671943,-500.0,0.00017534,2]
[357686929,1744332671953,-1604.56,0.00017534,2]
[357686930,1744332671962,-500.0,0.00017534,2]
[357686931,1744332671972,-1186.97,0.00017534,2]
[357686932,1744332671981,-7810.81,0.00017534,2]
[357686933,1744332671991,-500.0,0.00017534,2]
[357686934,1744332672002,-640.07,0.00017534,2]
[357686935,1744332672013,-614.86,0.00017534,2]
[357686936,1744332672023,-500.0,0.00017534,2]
[357686937,1744332672034,-13554.02,0.00017534,2]
[357686938,1744332672044,-769.63,0.00017534,2]
[357686939,1744332672053,-500.0,0.00017534,2]
[357686940,1744332672063,-5806.94,0.00017534,2]
[357686941,1744332672072,-555.86,0.00017534,2]
[357686942,1744332672082,-500.0,0.00017534,2]
[357686943,1744332672092,-1492.5,0.00017534,2]
[357686944,1744332672102,-726.32,0.00017534,2]
[357686945,1744332672112,-659.35,0.00017534,2]
[357686946,1744332672121,-688.0,0.00017534,2]
[357686947,1744332672131,-1067.15,0.00017534,2]
[357686948,1744332672141,-2931.48,0.00017534,2]
[357686949,1744332672151,-1735.47,0.00017534,2]
[357686950,1744332672160,-1109.5,0.00017534,2]
[357686951,1744332672170,-711.11,0.00017534,2]
[357686952,1744332672179,-13734.21,0.00017534,2]
[357686953,1744332672189,-2323.29,0.00017534,2]
[357686954,1744332672198,-1042.58,0.00017534,2]
[357686955,1744332672207,-728.17,0.00017534,2]
[357686956,1744332672217,-500.0,0.00017534,2]
[357686957,1744332672226,-500.0,0.00017534,2]
[357686958,1744332672236,-569.2,0.00017534,2]
[357686959,1744332672245,-500.0,0.00017534,2]
[357686960,1744332672255,-500.0,0.00017534,2]
[357686961,1744332672266,-4218.44,0.00017534,2]
[357686962,1744332672276,-848.49,0.00017534,2]
[357686963,1744332672285,-2639.23,0.00017534,2]
[357686964,1744332672295,-500.0,0.00017534,2]
[357686965,1744332672305,-2518.79,0.00017534,2]
[357686966,1744332672315,-500.0,0.00017534,2]
[357686967,1744332672325,-2840.99,0.00017534,2]
[357686968,1744332672456,-755.35,0.00017534,2]
[357686969,1744332672467,-630.78,0.00017534,2]
[357686970,1744332672476,-500.0,0.00017534,2]
[357686971,1744332672486,-500.0,0.00017534,2]
[357686972,1744332672495,-1220.83,0.00017534,2]
[357686973,1744332672505,-5035.72,0.00017534,2]
[357686974,1744332672514,-3916.52,0.00017534,2]
[357686975,1744332672523,-500.0,0.00017534,2]
[357686976,1744332672532,-500.0,0.00017534,2]
[357686977,1744332672542,-500.0,0.00017534,2]
[357686978,1744332672552,-508.34,0.00017534,2]
[357686979,1744332672562,-500.0,0.00017534,2]
[357686980,1744332672571,-1000.19,0.00017534,2]
[357686981,1744332672580,-884.76,0.00017534,2]
[357686982,1744332672589,-500.0,0.00017534,2]
[357686983,1744332672599,-500.0,0.00017534,2]
[357686984,1744332672608,-1347.73,0.00017534,2]
[357686985,1744332672617,-4175.53,0.00017534,2]
[357686986,1744332672627,-2772.56,0.00017534,2]
[357686987,1744332672636,-856.93,0.00017534,2]
[357686988,1744332672646,-792.4,0.00017534,2]
[357686989,1744332672658,-740.48,0.00017534,2]
[357686990,1744332672668,-408.36246808,0.00017534,2]
[357686991,1744332672677,-500.0,0.00017534,2]
[357686992,1744332672686,-500.0,0.00017534,2]
[357686993,1744332672697,-781.83,0.00017534,2]
[357686994,1744332672707,-500.0,0.00017534,2]
[357686995,1744332672716,-500.0,0.00017534,2]
[357686996,1744332672726,-500.0,0.00017534,2]
[357686997,1744332672737,-601.25,0.00017534,2]
[357686998,1744332672747,-9626.05,0.00017534,2]
[357686999,1744332672756,-1947.04,0.00017534,2]
[357687000,1744332672767,-966.14,0.00017534,2]
[357687001,1744332672777,-500.0,0.00017534,2]
[357687002,1744332672786,-4677.94,0.00017534,2]
[357687003,1744332672796,-500.0,0.00017534,2]
[357687004,1744332672806,-500.0,0.00017534,2]
[357687005,1744332672815,-500.0,0.00017534,2]
[357687006,1744332672825,-500.0,0.00017534,2]
[357687007,1744332672835,-527.85,0.00017534,2]
[357687008,1744332672844,-500.0,0.00017534,2]
[357687009,1744332672855,-714.13,0.00017534,2]
[357687010,1744332672864,-500.0,0.00017534,2]
[357687011,1744332672874,-756.51,0.00017534,2]
[357687012,1744332672883,-808.09,0.00017534,2]
[357687013,1744332672893,-6483.88,0.00017534,2]
[357687014,1744332672903,-6484.18,0.00017534,2]
[357687015,1744332672913,-500.0,0.00017534,2]
[357687016,1744332672923,-615.42,0.00017534,2]
[357687017,1744332672932,-500.0,0.00017534,2]
[357687018,1744332672942,-1945.56,0.00017534,2]
[357687019,1744332672952,-524.93,0.00017534,2]
[357687020,1744332672961,-187.70139511,0.00017534,2]
[357687021,1744332672971,-585.82,0.00017534,2]
[357687022,1744332672981,-1064.33,0.00017534,2]
[357687023,1744332672990,-1433.89,0.00017534,2]
[357687024,1744332672999,-917.83,0.00017534,2]
[357687025,1744332673009,-500.0,0.00017534,2]
[357687026,1744332673019,-1100.79,0.00017534,2]
[357687027,1744332673029,-668.16,0.00017534,2]
[357687028,1744332673039,-500.0,0.00017534,2]
[357687029,1744332673049,-500.0,0.00017534,2]
[357687030,1744332673059,-500.0,0.00017534,2]
[357687031,1744332673068,-540.97,0.00017534,2]
[357687032,1744332673078,-500.0,0.00017534,2]
[357687033,1744332673088,-4679.43,0.00017534,2]
[357687034,1744332673111,-947.12,0.00017534,2]
[357687035,1744332673131,-500.0,0.00017534,2]
[357687036,1744332673152,-500.0,0.00017534,2]
[357687037,1744332673174,-1008.44,0.00017534,2]
[357687038,1744332673194,-500.0,0.00017534,2]
[357687039,1744332673214,-4183.52,0.00017534,2]
[357687040,1744332673232,-500.0,0.00017534,2]
[357687041,1744332673250,-1151.7,0.00017534,2]
[357687042,1744332673271,-759.31,0.00017534,2]
[357687043,1744332673295,-500.0,0.00017534,2]
[357687044,1744332673314,-500.0,0.00017534,2]
[357687045,1744332673332,-626.77,0.00017534,2]
[357687046,1744332673354,-500.0,0.00017534,2]
[357687047,1744332673372,-942.33,0.00017534,2]
[357687048,1744332673392,-2564.86,0.00017534,2]
[357687049,1744332673406,-500.0,0.00017534,2]
[357687050,1744332673426,-1699.0,0.00017534,2]
[357687051,1744332673443,-731.4,0.00017534,2]
[357687052,1744332673460,-500.0,0.00017534,2]
[357687053,1744332673476,-570.97,0.00017534,2]
[357687054,1744332673494,-754.83,0.00017534,2]
[357687055,1744332673513,-3260.9,0.00017534,2]
[357687056,1744332673532,-500.9,0.00017534,2]
[357687057,1744332673552,-500.0,0.00017534,2]
[357687058,1744332673570,-18184.96,0.00017534,2]
[357687059,1744332673588,-500.0,0.00017534,2]
[357687060,1744332673607,-513.92117334,0.00017534,2]
[357687061,1744332673626,-488.54372861,0.00017534,2]
[357687062,1744332673645,-500.0,0.00017534,2]
[357687063,1744332673667,-506.91,0.00017534,2]
[357687064,1744332673686,-500.0,0.00017534,2]
[357687065,1744332673704,-740.5,0.00017534,2]
[357687066,1744332673722,-500.0,0.00017534,2]
[357687067,1744332673740,-559.11,0.00017534,2]
[357687068,1744332673759,-500.0,0.00017534,2]
[357687069,1744332673779,-1994.39,0.00017534,2]
[357687070,1744332673797,-585.97009208,0.00017534,2]
[357687071,1744332673816,-208.84989201,0.00017534,2]
[357687072,1744332673835,-500.0,0.00017534,2]
[357687073,1744332673852,-911.05,0.00017534,2]
[357687074,1744332673870,-6436.24,0.00017534,2]
[357687075,1744332673889,-1272.17,0.00017534,2]
[357687076,1744332673907,-1474.54,0.00017534,2]
[357687077,1744332673926,-1574.76,0.00017534,2]
[357687078,1744332673944,-483.2996512,0.00017534,2]
[357687079,1744332673964,-976.71,0.00017534,2]
[357687080,1744332673982,-650.21,0.00017534,2]
[357687081,1744332674000,-500.0,0.00017534,2]
[357687082,1744332674020,-3050.81,0.00017534,2]
[357687083,1744332674040,-500.0,0.00017534,2]
[357687084,1744332674060,-2422.75,0.00017534,2]
[357687085,1744332674078,-165.80514806,0.00017534,2]
[357687086,1744332674096,-524.39,0.00017534,2]
[357687087,1744332674114,-618.62,0.00017534,2]
[357687088,1744332674132,-5298.82,0.00017534,2]
[357687089,1744332674150,-527.61,0.00017534,2]
[357687090,1744332674168,-974.24,0.00017534,2]
[357687091,1744332674184,-1500.0,0.00017568,2]
[357687092,1744332674202,-151.37960369,0.00017573,2]
[357687093,1744332674220,-2053.59181501,0.000176,2]
[357687094,1744332674238,-443718.5884932,0.000176,2]
[357687095,1744332674256,-600.0,0.0001764,2]
[357687096,1744332674280,-11630.24417326,0.00017728,2]
[357687097,1744332674298,-207.4,0.00017797,2]
[357687098,1744332674316,-151.0,0.00017797,2]
[357687099,1744332674333,-3699.75,0.00017808,2]
[357687100,1744332674529,-500.0,0.00017808,2]
[357687101,1744332674539,-865.73,0.00017808,2]
[357687102,1744332674549,-1251.82,0.00017808,2]
[357687103,1744332674558,-500.0,0.00017808,2]
[357687104,1744332674568,-500.0,0.00017808,2]
[357687105,1744332674577,-500.0,0.00017808,2]
[357687106,1744332674586,-599.27,0.00017808,2]
[357687107,1744332674596,-570.69,0.00017808,2]
[357687108,1744332674605,-500.0,0.00017808,2]
[357687109,1744332674615,-822.09,0.00017808,2]
[357687110,1744332674624,-500.0,0.00017808,2]
[357687111,1744332674634,-500.0,0.00017808,2]
[357687112,1744332674644,-500.0,0.00017808,2]
[357687113,1744332674654,-500.0,0.00017808,2]
[357687114,1744332674665,-780.46,0.00017808,2]
[357687115,1744332674675,-911.25,0.00017808,2]
[357687116,1744332674684,-500.0,0.00017808,2]
[357687117,1744332674695,-500.0,0.00017808,2]
[357687118,1744332674704,-500.0,0.00017808,2]
[357687119,1744332674714,-500.0,0.00017808,2]
[357687120,1744332674723,-500.0,0.00017808,2]
[357687121,1744332674734,-500.0,0.00017808,2]
[357687122,1744332674743,-500.0,0.00017808,2]
[357687123,1744332674753,-500.0,0.00017808,2]
[357687124,1744332674762,-300.0,0.00017808,2]
[357687125,1744332674771,-500.0,0.00017808,2]
[357687126,1744332674781,-500.0,0.00017808,2]
[357687127,1744332674790,-500.0,0.00017808,2]
[357687128,1744332674799,-500.0,0.00017808,2]
[357687129,1744332674809,-500.0,0.00017808,2]
[357687130,1744332674818,-216.5743394,0.00017808,2]
[357687131,1744332674827,-500.0,0.00017808,2]
[357687132,1744332674837,-217.95713612,0.00017808,2]
[357687133,1744332674848,-500.0,0.00017808,2]
[357687134,1744332674857,-500.0,0.00017808,2]
[357687135,1744332674866,-1232.99,0.00017808,2]
[357687136,1744332674875,-588.16,0.00017808,2]
[357687137,1744332674884,-500.0,0.00017808,2]
[357687138,1744332674894,-500.0,0.00017808,2]
[357687139,1744332674903,-532.58933965,0.00017808,2]
[357687140,1744332674913,-500.0,0.00017808,2]
[357687141,1744332674923,-500.0,0.00017808,2]
[357687142,1744332674933,-500.0,0.00017808,2]
[357687143,1744332674942,-507.17,0.00017808,2]
[357687144,1744332674952,-500.0,0.00017808,2]
[357687145,1744332674961,-1079.66,0.00017808,2]
[357687146,1744332674971,-275.39576457,0.00017808,2]
[357687147,1744332674980,-1430.67,0.00017808,2]
[357687148,1744332674989,-500.0,0.00017808,2]
[357687149,1744332674999,-1119.95,0.00017808,2]
[357687150,1744332675008,-625.16,0.00017808,2]
[357687151,1744332675018,-500.0,0.00017808,2]
[357687152,1744332675027,-500.0,0.00017808,2]
[357687153,1744332675037,-686.77,0.00017808,2]
[357687154,1744332675046,-500.0,0.00017808,2]
[357687155,1744332675055,-2680.42,0.00017808,2]
[357687156,1744332675065,-500.0,0.00017808,2]
[357687157,1744332675074,-500.0,0.00017808,2]
[357687158,1744332675083,-500.0,0.00017808,2]
[357687159,1744332675093,-596.86,0.00017808,2]
[357687160,1744332675102,-500.0,0.00017808,2]
[357687161,1744332675111,-2411.42,0.00017808,2]
[357687162,1744332675120,-500.0,0.00017808,2]
[357687163,1744332675129,-687.7,0.00017808,2]
[357687164,1744332675138,-902.62,0.00017808,2]
[357687165,1744332675148,-500.0,0.00017808,2]
[357687166,1744332675157,-2689.13,0.00017808,2]
[357687167,1744332675167,-500.0,0.00017808,2]
[357687168,1744332675176,-785.7,0.00017808,2]
[357687169,1744332675186,-500.0,0.00017808,2]
[357687170,1744332675195,-500.0,0.00017808,2]
[357687171,1744332675205,-455.95367462,0.00017808,2]
[357687172,1744332675215,-5675.99,0.00017808,2]
[357687173,1744332675224,-500.0,0.00017808,2]
[357687174,1744332675233,-500.0,0.00017808,2]
[357687175,1744332675242,-870.2,0.00017808,2]
[357687176,1744332675252,-500.0,0.00017808,2]
[357687177,1744332675261,-500.0,0.00017808,2]
[357687178,1744332675271,-500.0,0.00017808,2]
[357687179,1744332675280,-500.0,0.00017808,2]
[357687180,1744332675289,-597.88,0.00017808,2]
[357687181,1744332675299,-500.0,0.00017808,2]
[357687182,1744332675308,-500.0,0.00017808,2]
[357687183,1744332675318,-626.25,0.00017808,2]
[357687184,1744332675327,-500.0,0.00017808,2]
[357687185,1744332675336,-500.0,0.00017808,2]
[357687186,1744332675346,-892.18,0.00017808,2]
[357687187,1744332675356,-500.0,0.00017808,2]